fUSD/lending_fUSD_20241001
["ID","MTS","AMOUNT","RATE_DAILY","PERIOD"]
[339647225,1727801732094,-500.0,0.00038356,120]
[339647226,1727801732119,-500.0,0.00038356,120]
[339647227,1727801732147,-500.0,0.00038356,120]
[339647228,1727801732183,-646.4,0.00038356,120]
[339647229,1727801732208,-500.0,0.00038356,120]
[339647230,1727801732234,-500.0,0.00038356,120]
[339647231,1727801732260,-500.0,0.00038356,120]
[339647232,1727801732286,-500.0,0.00038356,120]
[339647233,1727801732311,-500.7091906,0.00038356,120]
[339647234,1727801732335,-500.0,0.00038356,120]
[339647235,1727801732361,-500.0,0.00038356,120]
[339647236,1727801732386,-500.0,0.00038356,120]
[339647237,1727801732416,-2285.62,0.00038356,120]
[339647238,1727801732441,-500.0,0.00038356,120]
[339647239,1727801732703,-3080.36,0.00038356,120]
[339647240,1727801732728,-500.0,0.00038356,120]
[339647241,1727801732755,-500.60693397,0.00038356,120]
[339647242,1727801732781,-501.11041734,0.00038356,120]
[339647243,1727801732805,-562.78,0.00038356,120]
[339647244,1727801732831,-500.0,0.00038356,120]
[339647245,1727801732855,-540.88,0.00038356,120]
[339647246,1727801732881,-500.0,0.00038356,120]
[339647247,1727801732909,-500.0,0.00038356,120]
[339647248,1727801732934,-1160.06,0.00038356,120]
[339647249,1727801732959,-729.66,0.00038356,120]
[339647250,1727801732983,-500.0,0.00038356,120]
[339647251,1727801733009,-500.0,0.00038356,120]
[339647252,1727801733033,-500.0,0.00038356,120]
[339647253,1727801733060,-1057.4,0.00038356,120]
[339647254,1727801733086,-500.0,0.00038356,120]
[339647255,1727801733112,-504.53961141,0.00038356,120]
[339647256,1727801733137,-500.0,0.00038356,120]
[339647257,1727801733164,-500.0,0.00038356,120]
[339647258,1727801733191,-1166.89,0.00038356,120]
[339647259,1727801733217,-570.34,0.00038356,120]
[339647260,1727801733245,-500.0,0.00038356,120]
[339647261,1727801733272,-1021.89,0.00038356,120]
[339647262,1727801733299,-1161.36,0.00038356,120]
[339647263,1727801733324,-500.0,0.00038356,120]
[339647264,1727801733351,-695.55,0.00038356,120]
[339647265,1727801733377,-500.0,0.00038356,120]
[339647266,1727801733406,-500.0,0.00038356,120]
[339647267,1727801733435,-500.0,0.00038356,120]
[339647268,1727801733463,-500.0,0.00038356,120]
[339647269,1727801733491,-500.0,0.00038356,120]
[339647270,1727801733518,-501.96033151,0.00038356,120]
[339647271,1727801733545,-500.0,0.00038356,120]
[339647272,1727801733571,-500.0,0.00038356,120]
[339647273,1727801733597,-500.0,0.00038356,120]
[339647274,1727801733623,-500.0,0.00038356,120]
[339647275,1727801733651,-500.0,0.00038356,120]
[339647276,1727801733680,-500.0,0.00038356,120]
[339647277,1727801733706,-500.0,0.00038356,120]
[339647278,1727801733730,-577.02,0.00038356,120]
[339647279,1727801733759,-500.0,0.00038356,120]
[339647280,1727801733785,-500.0,0.00038356,120]
[339647281,1727801733810,-500.0,0.00038356,120]
[339647282,1727801733836,-500.0,0.00038356,120]
[339647283,1727801733862,-1737.94,0.00038356,120]
[339647284,1727801733889,-1154.85,0.00038356,120]
[339647285,1727801733915,-762.6,0.00038356,120]
[339647286,1727801733940,-500.0,0.00038356,120]
[339647287,1727801733965,-500.0,0.00038356,120]
[339647288,1727801733990,-1555.9,0.00038356,120]
[339647289,1727801734016,-500.0,0.00038356,120]
[339647290,1727801734041,-500.0,0.00038356,120]
[339647291,1727801734066,-594.61759764,0.00038356,120]
[339647292,1727801734092,-1771.98,0.00038356,120]
[339647293,1727801734118,-174.98866934,0.00038356,120]
[339647294,1727801734148,-500.0,0.00038356,120]
[339647295,1727801734175,-500.0,0.00038356,120]
[339647296,1727801734203,-2000.0,0.00038356,30]
[339647297,1727801734230,-1735.99,0.00038356,120]
[339647298,1727801734256,-500.0,0.00038356,120]
[339647299,1727801734284,-500.0,0.00038356,120]
[339647300,1727801734311,-500.0,0.00038356,120]
[339647301,1727801734337,-663.32,0.00038356,120]
[339647302,1727801734363,-1032.2,0.00038356,120]
[339647303,1727801734391,-500.0,0.00038356,120]
[339647304,1727801734418,-1319.15,0.00038356,120]
[339647305,1727801734444,-500.0,0.00038356,120]
[339647306,1727801734471,-1370.29,0.00038356,120]
[339647307,1727801734497,-500.0,0.00038356,120]
[339647308,1727801734522,-632.66382077,0.00038356,120]
[339647309,1727801734548,-500.0,0.00038356,120]
[339647310,1727801734575,-749.35,0.00038356,120]
[339647311,1727801734602,-500.0,0.00038356,120]
[339647312,1727801734628,-500.0,0.00038356,120]
[339647313,1727801734657,-708.69,0.00038356,120]
[339647314,1727801734686,-500.0,0.00038356,120]
[339647315,1727801734711,-500.0,0.00038356,120]
[339647316,1727801734737,-500.0,0.00038356,120]
[339647317,1727801734763,-511.75536451,0.00038356,120]
[339647318,1727801734789,-500.0,0.00038356,120]
[339647319,1727801734816,-862.12,0.00038356,120]
[339647320,1727801734843,-810.13,0.00038356,120]
[339647321,1727801734868,-500.0,0.00038356,120]
[339647322,1727801734895,-500.0,0.00038356,120]
[339647323,1727801734921,-500.0,0.00038356,120]
[339647324,1727801734947,-500.0,0.00038356,120]
[339647325,1727801734973,-725.6,0.00038356,120]
[339647326,1727801734998,-571.11,0.00038356,120]
[339647327,1727801735025,-584.12305848,0.00038356,120]
[339647328,1727801735051,-500.0,0.00038356,120]
[339647329,1727801735076,-500.0,0.00038356,120]
[339647330,1727801735101,-500.0,0.00038356,120]
[339647331,1727801735126,-500.0,0.00038356,120]
[339647332,1727801735154,-500.0,0.00038356,120]
[339647333,1727801735181,-500.0,0.00038356,120]
[339647334,1727801735206,-1091.17,0.00038356,120]
[339647335,1727801735231,-541.92,0.00038356,120]
[339647336,1727801735257,-500.0,0.00038356,120]
[339647337,1727801735281,-502.34102739,0.00038356,120]
[339647338,1727801735307,-502.32409631,0.00038356,120]
[339647339,1727801735332,-1391.58,0.00038356,120]
[339647340,1727801735358,-500.0,0.00038356,120]
[339647341,1727801735385,-500.0,0.00038356,120]
[339647342,1727801735413,-500.0,0.00038356,120]
[339647343,1727801735439,-500.0,0.00038356,120]
[339647344,1727801735677,-500.0,0.00038356,120]
[339647345,1727801735704,-500.0,0.00038356,120]
[339647346,1727801735730,-500.0,0.00038356,120]
[339647347,1727801735755,-1195.03,0.00038356,120]
[339647348,1727801735781,-500.0,0.00038356,120]
[339647349,1727801735805,-500.0,0.00038356,120]
[339647350,1727801735831,-500.0,0.00038356,120]
[339647351,1727801735856,-500.0,0.00038356,120]
[339647352,1727801735881,-1336.37,0.00038356,120]
[339647353,1727801735907,-500.0,0.00038356,120]
[339647354,1727801735931,-1311.62,0.00038356,120]
[339647355,1727801735955,-500.0,0.00038356,120]
[339647356,1727801735979,-532.57,0.00038356,120]
[339647357,1727801736003,-686.07,0.00038356,120]
[339647358,1727801736030,-167.29128035,0.00038356,120]
[339647359,1727801736056,-763.52,0.00038356,120]
[339647360,1727801736081,-500.0,0.00038356,120]
[339647361,1727801736105,-500.0,0.00038356,120]
[339647362,1727801736130,-500.0,0.00038356,120]
[339647363,1727801736162,-1763.89,0.00038356,120]
[339647364,1727801736188,-500.0,0.00038356,120]
[339647365,1727801736214,-500.0,0.00038356,120]
[339647366,1727801736240,-705.0,0.00038356,120]
[339647367,1727801736266,-500.0,0.00038356,120]
[339647368,1727801736293,-500.0,0.00038356,120]
[339647369,1727801736319,-500.0,0.00038356,120]
[339647370,1727801736345,-500.0,0.00038356,120]
[339647371,1727801736372,-500.0,0.00038356,120]
[339647372,1727801736406,-503.13958489,0.00038356,120]
[339647373,1727801736434,-500.0,0.00038356,120]
[339647374,1727801736461,-500.0,0.00038356,120]
[339647375,1727801736491,-718.41,0.00038356,120]
[339647376,1727801736518,-500.0,0.00038356,120]
[339647377,1727801736544,-501.96269415,0.00038356,120]
[339647378,1727801736572,-505.1283751,0.00038356,120]
[339647379,1727801736600,-674.17,0.00038356,120]
[339647380,1727801736626,-500.0,0.00038356,120]
[339647381,1727801736662,-718.55,0.00038356,120]
[339647382,1727801736689,-500.0,0.00038356,120]
[339647383,1727801736717,-500.0,0.00038356,120]
[339647384,1727801736747,-1164.27,0.00038356,120]
[339647385,1727801736773,-500.0,0.00038356,120]
[339647386,1727801736799,-716.89,0.00038356,120]
[339647387,1727801736825,-1034.95,0.00038356,120]
[339647388,1727801736851,-500.0,0.00038356,120]
[339647389,1727801736876,-606.04,0.00038356,120]
[339647390,1727801736904,-500.0,0.00038356,120]
[339647391,1727801736930,-500.0,0.00038356,120]
[339647392,1727801736955,-500.0,0.00038356,120]
[339647393,1727801736980,-500.57498442,0.00038356,120]
[339647394,1727801737008,-3858.35,0.00038356,120]
[339647395,1727801737034,-682.47,0.00038356,120]
[339647396,1727801737060,-500.0,0.00038356,120]
[339647397,1727801737086,-1196.56,0.00038356,120]
[339647398,1727801737112,-500.0,0.00038356,120]
[339647399,1727801737142,-626.27,0.00038356,120]
[339647400,1727801737168,-500.41877959,0.00038356,120]
[339647401,1727801737195,-922.72,0.00038356,120]
[339647402,1727801737221,-1387.95,0.00038356,120]
[339647403,1727801737247,-500.0,0.00038356,120]
[339647404,1727801737273,-445.1673138,0.00038356,120]
[339647405,1727801737299,-500.0,0.00038356,120]
[339647406,1727801737324,-500.0,0.00038356,120]
[339647407,1727801737351,-500.0,0.00038356,120]
[339647408,1727801737377,-500.0,0.00038356,120]
[339647409,1727801737405,-500.0,0.00038356,120]
[339647410,1727801737431,-500.0,0.00038356,120]
[339647411,1727801737456,-500.0,0.00038356,120]
[339647412,1727801737481,-853.03,0.00038356,120]
[339647413,1727801737506,-500.0,0.00038356,120]
[339647414,1727801737532,-564.96,0.00038356,120]
[339647415,1727801737557,-2832.65,0.00038356,120]
[339647416,1727801737582,-2265.8,0.00038356,120]
[339647417,1727801737608,-702.34,0.00038356,120]
[339647418,1727801737633,-500.0,0.00038356,120]
[339647419,1727801737663,-500.0,0.00038356,120]
[339647420,1727801737687,-1111.99,0.00038356,120]
[339647421,1727801737712,-500.0,0.00038356,120]
[339647422,1727801737738,-503.22,0.00038356,120]
[339647423,1727801737764,-500.0,0.00038356,120]
[339647424,1727801737790,-976.0,0.00038356,120]
[339647425,1727801737816,-2680.63,0.00038356,120]
[339647426,1727801737842,-500.0,0.00038356,120]
[339647427,1727801737867,-500.0,0.00038356,120]
[339647428,1727801737896,-500.0,0.00038356,120]
[339647429,1727801737923,-500.0,0.00038356,120]
[339647430,1727801737948,-4037.02,0.00038356,120]
[339647431,1727801737973,-702.92,0.00038356,120]
[339647432,1727801737997,-570.93,0.00038356,120]
[339647433,1727801738023,-500.0,0.00038356,120]
[339647434,1727801738048,-1558.33,0.00038356,120]
[339647435,1727801738072,-670.27,0.00038356,120]
[339647436,1727801738095,-500.0,0.00038356,120]
[339647437,1727801738120,-510.98,0.00038356,120]
[339647438,1727801738150,-500.0,0.00038356,120]
[339647439,1727801738174,-500.0,0.00038356,120]
[339647440,1727801738199,-1372.39,0.00038356,120]
[339647441,1727801738223,-607.23444632,0.00038356,120]
[339647442,1727801738248,-2088.03,0.00038356,120]
[339647443,1727801738273,-2715.58,0.00038356,120]
[339647444,1727801738298,-970.68,0.00038356,120]
[339647445,1727801738323,-500.0,0.00038356,120]
[339647446,1727801738348,-500.0,0.00038356,120]
[339647447,1727801738374,-500.0,0.00038356,120]
[339647448,1727801738401,-500.0,0.00038356,120]
[339647449,1727801738630,-596.29,0.00038356,120]
[339647450,1727801738662,-500.0,0.00038356,120]
[339647451,1727801738688,-636.82,0.00038356,120]
[339647452,1727801738713,-500.47873347,0.00038356,120]
[339647453,1727801738740,-500.0,0.00038356,120]
[339647454,1727801738766,-500.0,0.00038356,120]
[339647455,1727801738790,-622.88,0.00038356,120]
[339647456,1727801738816,-509.21351952,0.00038356,120]
[339647457,1727801738842,-797.39,0.00038356,120]
[339647458,1727801738867,-501.23499495,0.00038356,120]
[339647459,1727801738895,-500.0,0.00038356,120]
[339647460,1727801738921,-500.0,0.00038356,120]
[339647461,1727801738945,-500.0,0.00038356,120]
[339647462,1727801738971,-500.0,0.00038356,120]
[339647463,1727801738998,-1251.46,0.00038356,120]
[339647464,1727801739024,-500.0,0.00038356,120]
[339647465,1727801739051,-500.0,0.00038356,120]
[339647466,1727801739076,-1232.23,0.00038356,120]
[339647467,1727801739101,-1193.1,0.00038356,120]
[339647468,1727801739127,-557.63,0.00038356,120]
[339647469,1727801739159,-500.0,0.00038356,120]
[339647470,1727801739184,-538.38,0.00038356,120]
[339647471,1727801739212,-500.0,0.00038356,120]
[339647472,1727801739240,-1615.34,0.00038356,120]
[339647473,1727801739268,-500.0,0.00038356,120]
[339647474,1727801739296,-500.0,0.00038356,120]
[339647475,1727801739323,-500.0,0.00038356,120]
[339647476,1727801739349,-524.69,0.00038356,120]
[339647477,1727801739374,-500.0,0.00038356,120]
[339647478,1727801739413,-559.51,0.00038356,120]
[339647479,1727801739441,-500.0,0.00038356,120]
[339647480,1727801739466,-916.53,0.00038356,120]
[339647481,1727801739492,-500.0,0.00038356,120]
[339647482,1727801739518,-521.49,0.00038356,120]
[339647483,1727801739544,-500.0,0.00038356,120]
[339647484,1727801739569,-500.0,0.00038356,120]
[339647485,1727801739594,-500.0,0.00038356,120]
[339647486,1727801739619,-1052.03,0.00038356,120]
[339647487,1727801739648,-500.0,0.00038356,120]
[339647488,1727801739677,-500.0,0.00038356,120]
[339647489,1727801739703,-1990.55,0.00038356,120]
[339647490,1727801739730,-500.0,0.00038356,120]
[339647491,1727801739758,-1226.89,0.00038356,120]
[339647492,1727801739784,-500.0,0.00038356,120]
[339647493,1727801739810,-500.0,0.00038356,120]
[339647494,1727801739836,-500.0,0.00038356,120]
[339647495,1727801739862,-500.89690861,0.00038356,120]
[339647496,1727801739887,-500.0,0.00038356,120]
[339647497,1727801739916,-500.0,0.00038356,120]
[339647498,1727801739942,-500.0,0.00038356,120]
[339647499,1727801739967,-500.0,0.00038356,120]
[339647500,1727801739994,-501.4840361,0.00038356,120]
[339647501,1727801740021,-1199.63,0.00038356,120]
[339647502,1727801740047,-500.0,0.00038356,120]
[339647503,1727801740074,-500.0,0.00038356,120]
[339647504,1727801740101,-500.0,0.00038356,120]
[339647505,1727801740129,-500.0,0.00038356,120]
[339647506,1727801740164,-1750.21,0.00038356,120]
[339647507,1727801740193,-500.0,0.00038356,120]
[339647508,1727801740220,-826.64,0.00038356,120]
[339647509,1727801740248,-677.36,0.00038356,120]
[339647510,1727801740276,-500.0,0.00038356,120]
[339647511,1727801740302,-1388.49,0.00038356,120]
[339647512,1727801740328,-500.41748568,0.00038356,120]
[339647513,1727801740354,-531.74944859,0.00038356,120]
[339647514,1727801740380,-508.29,0.00038356,120]
[339647515,1727801740411,-500.0,0.00038356,120]
[339647516,1727801740437,-500.0,0.00038356,120]
[339647517,1727801740463,-500.0,0.00038356,120]
[339647518,1727801740490,-500.0,0.00038356,120]
[339647519,1727801740517,-541.9,0.00038356,120]
[339647520,1727801740543,-500.0,0.00038356,120]
[339647521,1727801740567,-500.0,0.00038356,120]
[339647522,1727801740592,-500.0,0.00038356,120]
[339647523,1727801740617,-500.0,0.00038356,120]
[339647524,1727801740642,-500.0,0.00038356,120]
[339647525,1727801740672,-658.34,0.00038356,120]
[339647526,1727801740696,-730.23,0.00038356,120]
[339647527,1727801740721,-503.23648618,0.00038356,120]
[339647528,1727801740746,-301.14686265,0.00038356,120]
[339647529,1727801740772,-500.0,0.00038356,120]
[339647530,1727801740798,-1529.29,0.00038356,120]
[339647531,1727801740823,-500.0,0.00038356,120]
[339647532,1727801740850,-503.2140436,0.00038356,120]
[339647533,1727801740876,-811.45,0.00038356,120]
[339647534,1727801740909,-164.70393637,0.00038356,120]
[339647535,1727801740939,-1519.29,0.00038356,120]
[339647536,1727801740967,-500.0,0.00038356,120]
[339647537,1727801740992,-500.0,0.00038356,120]
[339647538,1727801741017,-500.0,0.00038356,120]
[339647539,1727801741044,-500.60478908,0.00038356,120]
[339647540,1727801741069,-649.05,0.00038356,120]
[339647541,1727801741096,-635.87,0.00038356,120]
[339647542,1727801741123,-500.0,0.00038356,120]
[339647543,1727801741154,-500.0,0.00038356,120]
[339647544,1727801741181,-500.0,0.00038356,120]
[339647545,1727801741206,-500.0,0.00038356,120]
[339647546,1727801741233,-500.0,0.00038356,120]
[339647547,1727801741260,-500.0,0.00038356,120]
[339647548,1727801741286,-670.45,0.00038356,120]
[339647549,1727801741312,-500.97358278,0.00038356,120]
[339647550,1727801741338,-500.0,0.00038356,120]
[339647551,1727801741366,-450.94472421,0.00038356,120]
[339647552,1727801741392,-500.0,0.00038356,120]
[339647553,1727801741423,-506.41632867,0.00038356,120]
[339647554,1727801741449,-500.0,0.00038356,120]
[339647555,1727801741680,-500.0,0.00038356,120]
[339647556,1727801741708,-373.69828544,0.00038356,120]
[339647557,1727801741737,-1188.41,0.00038356,120]
[339647558,1727801741765,-500.0,0.00038356,120]
[339647559,1727801741794,-500.0,0.00038356,120]
[339647560,1727801741821,-500.0,0.00038356,120]
[339647561,1727801741848,-1619.13,0.00038356,120]
[339647562,1727801741874,-832.96,0.00038356,120]
[339647563,1727801741903,-500.0,0.00038356,120]
[339647564,1727801741929,-500.0,0.00038356,120]
[339647565,1727801741955,-500.0,0.00038356,120]
[339647566,1727801741980,-716.6,0.00038356,120]
[339647567,1727801742005,-500.0,0.00038356,120]
[339647568,1727801742033,-500.0,0.00038356,120]
[339647569,1727801742060,-549.18,0.00038356,120]
[339647570,1727801742087,-2578.82,0.00038356,120]
[339647571,1727801742114,-500.48792509,0.00038356,120]
[339647572,1727801742141,-500.0,0.00038356,120]
[339647573,1727801742173,-505.42,0.00038356,120]
[339647574,1727801742200,-500.0,0.00038356,120]
[339647575,1727801742226,-500.0,0.00038356,120]
[339647576,1727801742252,-501.46131685,0.00038356,120]
[339647577,1727801742279,-500.0,0.00038356,120]
[339647578,1727801742304,-500.0,0.00038356,120]
[339647579,1727801742330,-1199.39,0.00038356,120]
[339647580,1727801742356,-500.0,0.00038356,120]
[339647581,1727801742381,-806.35,0.00038356,120]
[339647582,1727801742409,-500.0,0.00038356,120]
[339647583,1727801742436,-500.0,0.00038356,120]
[339647584,1727801742462,-500.0,0.00038356,120]
[339647585,1727801742487,-513.61365845,0.00038356,120]
[339647586,1727801742513,-500.0,0.00038356,120]
[339647587,1727801742538,-500.0,0.00038356,120]
[339647588,1727801742563,-500.0,0.00038356,90]
[339647589,1727801742588,-584.12479758,0.00038356,120]
[339647590,1727801742614,-1452.8,0.00038356,120]
[339647591,1727801742640,-500.0,0.00038356,120]
[339647592,1727801742673,-500.0,0.00038356,120]
[339647593,1727801742699,-500.0,0.00038356,120]
[339647594,1727801742727,-1943.98,0.00038356,120]
[339647595,1727801742755,-500.0,0.00038356,120]
[339647596,1727801742782,-500.0,0.00038356,120]
[339647597,1727801742810,-500.0,0.00038356,120]
[339647598,1727801742836,-1297.51,0.00038356,120]
[339647599,1727801742861,-500.0,0.00038356,120]
[339647600,1727801742887,-500.0,0.00038356,120]
[339647601,1727801742920,-500.0,0.00038356,120]
[339647602,1727801742946,-500.0,0.00038356,120]
[339647603,1727801742971,-500.0,0.00038356,120]
[339647604,1727801742995,-500.0,0.00038356,120]
[339647605,1727801743020,-500.0,0.00038356,120]
[339647606,1727801743045,-500.0,0.00038356,120]
[339647607,1727801743071,-503.81875596,0.00038356,120]
[339647608,1727801743095,-832.73,0.00038356,120]
[339647609,1727801743119,-500.0,0.00038356,120]
[339647610,1727801743145,-500.0,0.00038356,120]
[339647611,1727801743176,-500.0,0.00038356,120]
[339647612,1727801743202,-1279.3,0.00038356,120]
[339647613,1727801743227,-500.0,0.00038356,120]
[339647614,1727801743252,-500.0,0.00038356,120]
[339647615,1727801743279,-500.0,0.00038356,120]
[339647616,1727801743307,-500.0,0.00038356,120]
[339647617,1727801743335,-1894.93,0.00038356,120]
[339647618,1727801743362,-500.0,0.00038356,120]
[339647619,1727801743389,-500.0,0.00038356,120]
[339647620,1727801743418,-500.0,0.00038356,120]
[339647621,1727801743443,-500.0,0.00038356,120]
[339647622,1727801743468,-500.0,0.00038356,120]
[339647623,1727801743492,-500.0,0.00038356,120]
[339647624,1727801743517,-500.0,0.00038356,120]
[339647625,1727801743542,-500.0,0.00038356,120]
[339647626,1727801743568,-500.88719134,0.00038356,120]
[339647627,1727801743594,-500.0,0.00038356,120]
[339647628,1727801743619,-500.0,0.00038356,120]
[339647629,1727801743648,-500.0,0.00038356,120]
[339647630,1727801743679,-500.0,0.00038356,120]
[339647631,1727801743705,-500.0,0.00038356,120]
[339647632,1727801743729,-500.0,0.00038356,120]
[339647633,1727801743759,-500.0,0.00038356,120]
[339647634,1727801743785,-300.0,0.00038356,120]
[339647635,1727801743811,-500.0,0.00038356,120]
[339647636,1727801743836,-500.0,0.00038356,120]
[339647637,1727801743860,-504.12,0.00038356,120]
[339647638,1727801743885,-1453.92,0.00038356,120]
[339647639,1727801743912,-500.0,0.00038356,120]
[339647640,1727801743938,-500.0,0.00038356,120]
[339647641,1727801743963,-500.0,0.00038356,120]
[339647642,1727801743987,-500.0,0.00038356,120]
[339647643,1727801744011,-1062.37,0.00038356,120]
[339647644,1727801744037,-725.25,0.00038356,120]
[339647645,1727801744062,-539.58,0.00038356,120]
[339647646,1727801744086,-500.0,0.00038356,120]
[339647647,1727801744111,-500.0,0.00038356,120]
[339647648,1727801744136,-612.74252496,0.00038356,120]
[339647649,1727801744165,-549.92,0.00038356,120]
[339647650,1727801744190,-500.0,0.00038356,120]
[339647651,1727801744216,-500.0,0.00038356,120]
[339647652,1727801744242,-500.0,0.00038356,120]
[339647653,1727801744268,-553.87,0.00038356,120]
[339647654,1727801744294,-500.0,0.00038356,120]
[339647655,1727801744320,-500.0,0.00038356,120]
[339647656,1727801744345,-500.0,0.00038356,120]
[339647657,1727801744370,-500.0,0.00038356,120]
[339647658,1727801744397,-1219.73,0.00038356,120]
[339647659,1727801744424,-500.0,0.00038356,120]
[339647660,1727801744643,-502.19691726,0.00038356,120]
[339647661,1727801744674,-500.0,0.00038356,120]
[339647662,1727801744700,-763.35,0.00038356,120]
[339647663,1727801744727,-500.0,0.00038356,120]
[339647664,1727801744757,-500.0,0.00038356,120]
[339647665,1727801744784,-502.64724858,0.00038356,120]
[339647666,1727801744809,-2339.06,0.00038356,120]
[339647667,1727801744836,-585.73009368,0.00038356,120]
[339647668,1727801744860,-500.0,0.00038356,120]
[339647669,1727801744886,-500.0,0.00038356,120]
[339647670,1727801744920,-748.91,0.00038356,30]
[339647671,1727801744947,-1300.41,0.00038356,120]
[339647672,1727801744971,-891.92,0.00038356,120]
[339647673,1727801744997,-500.0,0.00038356,120]
[339647674,1727801745025,-502.49920526,0.00038356,120]
[339647675,1727801745050,-500.81803189,0.00038356,120]
[339647676,1727801745076,-500.0,0.00038356,120]
[339647677,1727801745102,-1240.69,0.00038356,120]
[339647678,1727801745128,-500.0,0.00038356,120]
[339647679,1727801745158,-500.0,0.00038356,120]
[339647680,1727801745185,-1226.11,0.00038356,120]
[339647681,1727801745211,-500.0,0.00038356,120]
[339647682,1727801745237,-504.43287415,0.00038356,120]
[339647683,1727801745262,-503.28550015,0.00038356,120]
[339647684,1727801745289,-3674.56,0.00038356,120]
[339647685,1727801745314,-500.0,0.00038356,120]
[339647686,1727801745339,-503.84505564,0.00038356,120]
[339647687,1727801745364,-500.0,0.00038356,120]
[339647688,1727801745389,-501.00595515,0.00038356,120]
[339647689,1727801745419,-500.0,0.00038356,120]
[339647690,1727801745444,-500.0,0.00038356,120]
[339647691,1727801745469,-803.0,0.00038356,120]
[339647692,1727801745494,-500.0,0.00038356,120]
[339647693,1727801745519,-1027.36,0.00038356,120]
[339647694,1727801745544,-586.39,0.00038356,120]
[339647695,1727801745568,-500.0,0.00038356,120]
[339647696,1727801745593,-500.0,0.00038356,120]
[339647697,1727801745618,-500.0,0.00038356,120]
[339647698,1727801745643,-330.41473617,0.00038356,120]
[339647699,1727801745672,-833.14,0.00038356,120]
[339647700,1727801745698,-500.0,0.00038356,120]
[339647701,1727801745722,-500.0,0.00038356,120]
[339647702,1727801745747,-307.28250632,0.00038356,120]
[339647703,1727801745772,-500.0,0.00038356,120]
[339647704,1727801745797,-801.06,0.00038356,120]
[339647705,1727801745821,-500.0,0.00038356,120]
[339647706,1727801745845,-528.25,0.00038356,120]
[339647707,1727801745871,-2902.09,0.00038356,120]
[339647708,1727801745896,-586.91,0.00038356,120]
[339647709,1727801745923,-912.77,0.00038356,120]
[339647710,1727801745948,-500.0,0.00038356,120]
[339647711,1727801745973,-500.0,0.00038356,120]
[339647712,1727801745998,-1372.92,0.00038356,120]
[339647713,1727801746024,-500.0,0.00038356,120]
[339647714,1727801746050,-500.0,0.00038356,120]
[339647715,1727801746075,-500.0,0.00038356,120]
[339647716,1727801746100,-500.0,0.00038356,120]
[339647717,1727801746127,-500.0,0.00038356,120]
[339647718,1727801746157,-225.54460609,0.00038356,120]
[339647719,1727801746183,-500.0,0.00038356,120]
[339647720,1727801746208,-500.0,0.00038356,120]
[339647721,1727801746234,-500.0,0.00038356,120]
[339647722,1727801746259,-940.72,0.00038356,120]
[339647723,1727801746285,-535.72039527,0.00038356,120]
[339647724,1727801746311,-945.09,0.00038356,120]